bitfinex-derivatives/quotes_ETHF0:USTF0_20241004
["timestamp","ask_amount","ask_price","bid_price","bid_amount"]
[1728051134856,0.42211,2369.4,2368.6,3.5953]
[1728051134857,0.416,2369.5,2368.6,4.65093]
[1728051135059,0.42214,2369.3,2369.1,0.42215]
[1728051135258,0.416,2369.5,2368.6,3.5953]
[1728051135447,0.42222,2368.8,2368.7,0.42223]
[1728051135756,1.05543,2369.1,2368.6,0.3875]
[1728051135943,3.2078,2369.3,2368.6,0.3875]
[1728051136148,3.2078,2369.3,2368.7,3.2078]
[1728051136349,0.42211,2369.4,2369.3,0.42212]
[1728051136546,3.6238,2369.5,2369.4,0.42211]
[1728051136753,0.416,2369.5,2369.4,0.42211]
[1728051136960,0.83809,2369.5,2369.4,0.42211]
[1728051137252,0.42212,2369.3,2369.1,0.42215]
[1728051137457,1.05529,2369.4,2368.8,0.3915]
[1728051137656,1.05543,2369.1,2368.4,5.08162]
[1728051137854,1.05543,2369.1,2368.7,0.42221]
[1728051137855,0.4222,2368.9,2368.7,0.42221]
[1728051138055,0.42223,2368.7,2368.5,0.3915]
[1728051138454,0.42225,2368.6,2368.5,0.3915]
[1728051139055,1.05554,2368.8,2368.2,0.42231]
[1728051139360,0.42232,2368.2,2368.1,0.3905]
[1728051139656,5.37739688,2369.0,2368.9,0.4222]
[1728051139853,0.42216,2369.1,2369.0,0.42218]
[1728051140163,0.42215,2369.2,2369.0,0.42216]
[1728051140359,0.4192,2369.6,2369.4,0.4221]
[1728051140653,0.42209,2369.5,2369.4,0.42209]
[1728051140855,4.64209,2369.5,2369.4,0.42209]
[1728051141053,4.22,2369.5,2369.4,0.42209]
[1728051141255,3.2078,2369.7,2368.9,1.201]
[1728051141456,0.42209,2369.5,2369.4,0.4221]
[1728051141657,3.2078,2369.7,2369.1,1.05541]
[1728051141954,0.42204,2369.8,2369.7,0.42205]
[1728051142164,4.22,2369.8,2369.1,3.2078]
[1728051142357,0.4221,2369.5,2369.3,0.42211]
[1728051142552,0.42212,2369.4,2368.9,2.25647]
[1728051142860,1.05509,2369.8,2369.4,0.4221]
[1728051143060,0.42209,2369.5,2369.4,0.4221]
[1728051143259,1.05509,2369.8,2369.4,0.4221]
[1728051143461,0.4221,2369.5,2369.0,1.05544]
[1728051143658,1.05514,2369.7,2369.4,0.42209]
[1728051143863,0.42209,2369.5,2369.0,1.05544]
[1728051144058,3.2078,2369.6,2368.9,1.201]
[1728051144365,0.4221,2369.5,2369.3,0.42212]
[1728051144557,1.05517,2369.7,2368.9,1.201]
[1728051144558,3.2078,2369.6,2368.9,1.201]
[1728051144865,0.42215,2369.2,2369.0,0.42218]
[1728051145162,0.42214,2369.3,2369.1,0.42215]
[1728051145366,0.42214,2369.3,2368.9,0.3905]
[1728051145367,0.42212,2369.4,2368.9,0.3905]
[1728051145572,0.42212,2369.4,2369.3,0.42212]
[1728051145770,3.2078,2369.6,2368.9,1.44599]
[1728051146065,0.42209,2369.5,2369.3,0.42211]
[1728051146265,3.2078,2369.6,2368.9,1.44599]
[1728051146266,0.42211,2369.4,2369.2,0.42213]
[1728051146466,0.42209,2369.5,2369.4,0.42211]
[1728051146673,3.2078,2369.6,2369.5,0.42209]
[1728051147060,1.47418,2370.1,2369.8,0.42203]
[1728051147264,1.05501,2370.0,2369.6,0.42206]
[1728051147569,1.05501,2370.0,2369.8,0.42203]
[1728051147570,0.42201,2370.0,2369.8,0.42203]
[1728051148272,0.42202,2369.9,2369.8,0.42203]
[1728051148673,0.422,2370.0,2369.9,0.42202]
[1728051148862,0.42199,2370.1,2369.5,1.47102]
[1728051149174,0.42199,2370.1,2369.9,0.422]
[1728051149375,3.2078,2370.1,2369.5,0.4158]
[1728051149668,0.42211,2369.4,2369.2,0.42213]
[1728051149864,1.05518,2369.7,2369.1,0.8352]
[1728051150064,3.2078,2369.8,2369.1,0.8352]
[1728051150361,1.05514,2369.7,2369.1,0.8352]
[1728051150565,3.2078,2369.8,2369.1,0.8352]
[1728051150566,0.42211,2369.4,2369.2,0.42213]
[1728051150767,0.42211,2369.4,2369.1,0.8352]
[1728051150768,3.2078,2369.8,2369.1,0.8352]
[1728051150971,0.4221,2369.5,2369.3,0.42211]
[1728051151159,0.42213,2369.3,2369.1,1.25735]
[1728051151367,0.42211,2369.4,2369.1,0.8352]
[1728051151563,1.05524,2369.5,2369.2,0.42214]
[1728051151764,0.42211,2369.4,2369.1,0.8352]
[1728051151959,3.2078,2369.8,2369.4,0.4221]
[1728051152174,2.16959688,2370.2,2369.5,3.2078]
[1728051152465,0.42199,2370.1,2369.6,1.05517]
[1728051152668,3.22445688,2370.4,2369.9,0.422]
[1728051152669,1.05486,2370.4,2369.9,0.422]
[1728051152973,1.05486,2370.4,2369.2,6.16072]
[1728051152974,6.21959688,2370.0,2369.1,0.4194]
[1728051153171,6.21959688,2370.0,2369.1,0.42215]
[1728051153172,0.42213,2369.3,2369.1,0.42215]
[1728051153476,1.05524,2369.5,2369.0,3.2078]
[1728051153680,0.42211,2369.4,2369.3,0.42212]
[1728051154269,3.2078,2369.6,2369.0,3.2078]
[1728051154471,0.42213,2369.3,2369.1,0.42215]
[1728051154673,0.42212,2369.4,2369.1,0.42216]
[1728051154875,0.4221,2369.5,2369.3,0.42212]
[1728051155171,3.2078,2369.6,2369.0,3.2078]
[1728051155472,3.2078,2369.6,2369.2,0.42213]
[1728051155775,3.2078,2369.6,2369.0,3.2078]
[1728051156273,0.42212,2369.4,2369.2,0.42214]
[1728051156670,0.42212,2369.4,2369.0,3.2078]
[1728051156871,3.2078,2369.6,2369.2,0.42213]
[1728051157070,0.42212,2369.3,2369.1,0.42215]
[1728051157279,1.05516,2369.7,2369.0,3.2078]
[1728051157577,0.4221,2369.5,2369.3,0.42212]
[1728051157776,3.2078,2369.7,2369.4,0.42209]
[1728051157976,3.2078,2369.7,2369.0,1.05543]
[1728051158168,1.05518,2369.6,2369.2,0.42213]
[1728051158475,0.42215,2369.2,2369.1,0.42215]
[1728051158776,1.05524,2369.5,2368.7,5.49238]
[1728051158977,1.05524,2369.5,2368.8,1.05553]
[1728051159281,0.42214,2369.3,2369.1,0.42215]
[1728051159473,1.05528,2369.4,2368.7,4.4368]
[1728051159674,3.2078,2369.7,2369.2,0.42214]
[1728051159675,0.42213,2369.3,2369.2,0.42214]
[1728051159972,1.47739,2369.4,2369.0,0.42216]
[1728051160181,0.42214,2369.3,2369.1,0.42215]
[1728051160576,0.42215,2369.2,2369.1,0.42216]
[1728051160771,0.42214,2369.3,2369.1,0.42215]
[1728051161077,0.42214,2369.3,2369.2,0.42214]
[1728051161275,3.2078,2369.7,2368.9,1.0555]
[1728051161476,1.05514,2369.7,2369.3,0.42211]
[1728051161677,1.05519,2369.6,2369.3,0.42211]
[1728051161871,0.42211,2369.4,2369.3,0.42211]
[1728051162474,0.42212,2369.3,2369.2,0.42213]
[1728051162680,0.42215,2369.2,2369.1,0.42215]
[1728051162880,0.42215,2369.2,2368.8,0.42221]
[1728051163074,0.42215,2369.2,2368.9,0.4222]
[1728051163382,1.05532,2369.3,2368.8,0.42221]
[1728051163577,3.2078,2369.4,2368.7,1.229]
[1728051163876,2.16959688,2369.7,2368.8,8.2708]
[1728051164177,0.42199,2370.1,2369.8,0.42202]
[1728051164371,2.38148347,2370.3,2370.0,0.42199]
[1728051164573,0.42199,2370.1,2369.9,0.81711]
[1728051164771,0.42198,2370.2,2370.0,0.422]
[1728051164971,0.42198,2370.2,2369.9,0.3951]
[1728051165180,0.42196,2370.3,2370.1,0.42197]
[1728051165577,3.22443688,2370.4,2369.9,0.3951]
[1728051165780,3.22443688,2370.4,2370.0,0.42198]
[1728051166083,2.16959688,2370.5,2370.0,1.05501]
[1728051166277,2.16959688,2370.7,2370.0,5.10501]
[1728051166578,2.59279688,2371.2,2370.5,3.2078]
[1728051166777,0.4232,2371.2,2370.7,0.42186]
[1728051166972,0.4218,2371.1,2370.7,0.42187]
[1728051167176,0.4232,2371.2,2370.6,0.7875]
[1728051167384,0.42181,2371.1,2370.7,0.42187]
[1728051167680,0.42183,2371.0,2370.7,0.42187]
[1728051167979,0.42181,2371.1,2370.8,0.42186]
[1728051168191,0.84499,2371.2,2370.9,0.42183]
[1728051168375,0.4232,2371.2,2370.6,0.7875]
[1728051168575,0.42187,2370.7,2370.6,0.3998]
[1728051168769,0.4232,2371.2,2370.0,0.3877]
[1728051168770,4.05,2370.9,2370.0,0.3877]
[1728051168983,3.2078,2370.7,2370.0,0.7875]
[1728051169183,0.42198,2370.1,2370.0,0.7875]
[1728051169382,0.42198,2370.1,2370.0,0.3998]
[1728051169684,2.16959688,2370.5,2370.1,0.42198]
[1728051169876,2.16959688,2370.5,2370.0,0.3998]
[1728051169877,0.42197,2370.2,2370.0,0.82179]
[1728051170280,2.59151688,2370.5,2370.2,0.42195]
[1728051170473,0.42195,2370.3,2370.1,0.42198]
[1728051170782,0.42197,2370.2,2370.0,0.3998]
[1728051170986,0.42197,2370.2,2370.0,0.82179]
[1728051171175,0.42198,2370.1,2370.0,0.3998]
[1728051171377,0.42197,2370.2,2370.0,0.3998]
[1728051171680,1.05483,2370.4,2370.0,0.3998]
[1728051171681,0.42198,2370.1,2370.0,0.3998]
[1728051171884,3.2078,2370.4,2370.0,0.3998]
[1728051172074,0.42198,2370.2,2370.0,0.3998]
[1728051172387,3.2078,2370.4,2370.0,0.3998]
[1728051172587,0.42196,2370.3,2370.1,0.42198]
[1728051172782,0.42198,2370.2,2370.0,0.82179]
[1728051173189,0.42196,2370.3,2370.1,0.42197]
[1728051173579,3.2078,2370.4,2370.0,0.3998]
[1728051173882,1.05468,2370.8,2370.7,0.42187]
[1728051173883,3.2078,2370.8,2370.7,0.42187]
[1728051174590,3.62966,2370.8,2370.5,0.42191]
[1728051174780,0.42186,2370.8,2370.6,0.81459]
[1728051174979,3.22405688,2371.3,2370.6,0.3927]
[1728051174980,3.2078,2370.9,2370.6,0.3927]
[1728051175377,3.2078,2370.9,2370.7,0.42186]
[1728051175784,3.2078,2370.9,2370.7,4.63946]
[1728051175983,1.05446,2371.3,2370.8,4.2176]
[1728051176189,5.80199688,2371.4,2370.7,0.4132]
[1728051176481,0.42183,2371.0,2370.7,0.83507]
[1728051176676,0.42183,2371.0,2370.7,0.4132]
[1728051176982,0.42183,2371.0,2370.8,0.42185]
[1728051177384,0.42185,2370.9,2370.6,0.81458]
[1728051177683,1.05443,2371.3,2370.6,0.3927]
[1728051177891,1.05443,2371.3,2370.6,1.44743]
[1728051178186,3.6324,2371.4,2371.0,0.42182]
[1728051178187,0.42181,2371.1,2371.0,0.42182]
[1728051178385,3.6324,2371.4,2370.7,0.3965]
[1728051178581,1.05452,2371.1,2370.7,0.3965]
[1728051178782,0.42183,2371.0,2370.9,0.42183]
[1728051178983,0.4218,2371.2,2371.1,0.4218]
[1728051179186,1.05443,2371.3,2370.8,1.05465]
[1728051179487,1.05443,2371.3,2370.7,0.3965]
[1728051179685,0.42184,2371.0,2370.9,0.42183]
[1728051180182,1.05443,2371.3,2370.7,1.45119]
[1728051180387,0.4218,2371.2,2371.1,0.42179]
[1728051180875,1.47898,2371.4,2371.1,4.2176]
[1728051180876,0.4246,2371.4,2371.1,4.2176]
[1728051181079,0.42173,2371.6,2371.0,4.05]
[1728051181280,0.42174,2371.5,2371.4,0.42174]
[1728051181775,0.42172,2371.6,2371.5,0.42171]
[1728051181985,3.2078,2371.7,2371.6,0.42171]
[1728051182188,3.62946,2372.0,2371.9,0.42166]
[1728051182398,2.16959688,2372.4,2371.6,4.2168]
[1728051182399,0.42161,2372.2,2372.1,0.42162]
[1728051182690,0.42161,2372.3,2372.1,4.63681]
[1728051182881,0.42161,2372.2,2372.1,0.42161]
[1728051183079,0.4216,2372.3,2372.2,0.4216]
[1728051183280,0.42159,2372.3,2371.9,0.8157]
[1728051183478,1.26599386,2372.5,2372.1,0.42161]
[1728051183676,0.4216,2372.3,2372.1,0.42161]
[1728051183883,0.4216,2372.3,2371.9,0.8157]
[1728051183884,0.21208386,2372.5,2371.9,0.8157]
[1728051184084,1.05387,2372.6,2371.9,0.8157]
[1728051184293,0.3878,2372.7,2372.2,3.2078]
[1728051184486,3.2078,2373.0,2372.2,3.2078]
[1728051184689,1.05389,2372.5,2372.0,0.4144]
[1728051184887,3.2078,2372.3,2371.9,0.4222]
[1728051185189,0.42164,2372.0,2371.9,0.4222]
[1728051185392,0.42164,2372.0,2371.9,0.84386]
[1728051185790,1.05403,2372.2,2371.9,0.4222]
[1728051185986,3.2078,2372.3,2371.9,0.4222]
[1728051186192,0.42164,2372.0,2371.9,0.4222]
[1728051186993,1.05403,2372.2,2371.9,0.4222]
[1728051187186,0.42162,2372.2,2372.0,0.42164]
[1728051187682,3.2078,2372.3,2372.0,0.42164]
[1728051187883,4.2618,2372.3,2371.9,0.4222]
[1728051188080,0.42163,2372.1,2371.9,0.4222]
[1728051188283,0.42162,2372.2,2372.1,0.42163]
[1728051188484,3.2078,2372.3,2372.2,0.42161]
[1728051188690,0.429,2372.4,2372.3,0.42159]
[1728051188691,0.42158,2372.4,2372.3,0.42159]
[1728051188986,0.4113,2372.8,2372.5,0.42155]
[1728051189187,1.46507,2372.8,2372.4,0.42157]
[1728051189389,0.42153,2372.7,2372.2,1.05403]
[1728051189587,0.42155,2372.5,2372.4,0.42156]
[1728051189783,0.42159,2372.3,2372.2,0.4216]
[1728051189989,4.26162,2372.7,2371.9,3.63]
[1728051190186,7.2578,2372.7,2371.9,0.4222]
[1728051190691,1.05398,2372.4,2371.9,0.4222]
[1728051190886,0.42162,2372.2,2372.1,0.42162]
[1728051191083,4.26165,2372.7,2371.9,0.4222]
[1728051191293,0.42158,2372.4,2372.3,0.42158]
[1728051191491,0.42156,2372.5,2372.4,0.42156]
[1728051191693,3.2078,2372.7,2372.0,1.0541]
[1728051191995,3.2078,2372.7,2372.1,1.05406]
[1728051192205,0.4113,2372.8,2372.7,0.42152]
[1728051192494,3.2078,2373.1,2372.4,1.05392]
[1728051192687,0.42148,2373.0,2372.9,0.42148]
[1728051193088,0.42144,2373.2,2373.1,0.42144]
[1728051193291,0.4158,2373.3,2372.6,5.10385]
[1728051193497,0.4158,2373.3,2372.8,4.26156]
[1728051193789,0.83722,2373.3,2372.8,4.26156]
[1728051193993,0.4158,2373.3,2373.2,0.42143]
[1728051194184,0.42144,2373.2,2373.1,0.42144]
[1728051194385,0.4158,2373.3,2372.8,4.26156]
[1728051194590,0.42143,2373.2,2373.0,0.42145]
[1728051194796,0.4158,2373.3,2372.8,3.2078]
[1728051195094,3.2078,2373.4,2372.8,3.2078]
[1728051195301,3.6292,2373.4,2373.3,0.42141]
[1728051195495,3.2078,2373.4,2373.3,0.42141]
[1728051195698,3.2078,2373.4,2373.3,4.63501]
[1728051195900,4.26102,2374.1,2373.3,11.26712]
[1728051196102,0.5054,2374.5,2373.1,4.0437]
[1728051196103,0.4276,2374.2,2373.5,5.10345]
[1728051196293,0.4276,2374.2,2373.4,3.2078]
[1728051196597,0.4276,2374.2,2373.6,1.05341]
[1728051196794,0.4276,2374.2,2373.9,0.4213]
[1728051196795,0.42129,2374.0,2373.9,0.4213]
[1728051197097,3.2078,2374.1,2373.7,0.4277]
[1728051197404,0.42132,2373.9,2373.7,0.84904]
[1728051197597,0.42132,2373.9,2373.8,0.42132]
[1728051197598,0.42131,2373.9,2373.8,0.42132]
[1728051198200,0.42131,2373.9,2373.7,0.84903]
[1728051198398,0.42131,2373.9,2373.8,0.42132]
[1728051198597,3.2078,2374.1,2373.7,0.4277]
[1728051198800,3.2078,2374.1,2373.5,0.42137]
[1728051198801,0.42136,2373.6,2373.5,0.42137]
[1728051199104,0.42136,2373.6,2373.2,0.4277]
[1728051199402,0.42136,2373.6,2373.5,0.42138]
[1728051199695,4.261,2374.1,2373.5,0.42138]
[1728051199696,3.2078,2374.1,2373.5,4.2128]
[1728051199898,3.2078,2374.1,2373.2,4.4777]
[1728051200094,0.42132,2373.8,2373.7,0.42134]
[1728051200401,3.2078,2374.1,2373.2,0.4277]
[1728051200703,0.42133,2373.8,2373.7,0.42134]
[1728051200896,0.42133,2373.8,2373.4,0.42139]
[1728051201099,0.42133,2373.8,2373.7,0.42134]
[1728051201605,0.42135,2373.7,2373.6,0.42135]
[1728051202098,0.42133,2373.8,2373.3,1.05352]
[1728051202405,0.4276,2374.2,2373.6,1.05341]
[1728051202697,0.4276,2374.2,2374.1,0.42127]
[1728051203305,0.42125,2374.3,2374.1,0.42127]
[1728051203696,0.42125,2374.3,2373.8,0.4125]
[1728051203892,0.42124,2374.3,2373.8,0.4125]
[1728051204097,0.42128,2374.1,2374.0,0.42129]
[1728051204291,0.42126,2374.2,2374.1,0.42127]
[1728051204497,3.2078,2374.4,2374.1,0.42127]
[1728051204498,3.2078,2374.4,2374.1,0.42126]
[1728051204795,0.42125,2374.2,2374.1,0.42126]
[1728051205099,0.42127,2374.2,2373.8,0.4125]
[1728051205300,0.42127,2374.2,2374.1,0.42127]
[1728051205597,3.2078,2374.4,2373.8,0.4125]
[1728051205804,3.2078,2374.4,2374.3,0.42123]
[1728051206203,0.42124,2374.3,2374.1,0.42126]
[1728051206406,0.42121,2374.5,2374.2,4.212]
[1728051206602,3.2078,2374.7,2374.2,1.05314]
[1728051206803,3.2078,2374.7,2374.6,0.42118]
[1728051207101,0.42113,2375.0,2374.8,0.42113]
[1728051207301,1.44057,2375.1,2375.0,0.42111]
[1728051207302,0.3878,2375.1,2375.0,0.42111]
[1728051207493,3.62886,2375.4,2375.2,0.42107]
[1728051207697,3.62886,2375.4,2374.9,1.05281]
[1728051207698,3.2078,2375.4,2375.3,0.42106]
[1728051207898,0.42106,2375.3,2375.2,0.42106]
[1728051208299,0.42109,2375.2,2375.1,0.42109]
[1728051208800,3.2078,2375.5,2374.7,5.4994]
[1728051209103,0.42109,2375.2,2374.7,5.4994]
[1728051209501,0.42111,2375.1,2374.7,4.4465]
[1728051209696,1.05265,2375.3,2375.0,0.4211]
[1728051209895,1.47389,2375.0,2374.5,0.4212]
[1728051210093,3.2078,2375.1,2374.4,4.4595]
[1728051210298,1.47261,2375.2,2374.8,0.42114]
[1728051210497,0.42113,2374.9,2374.8,0.42114]
[1728051210699,1.05283,2374.9,2374.5,0.42119]
[1728051210905,0.42119,2374.6,2374.4,0.4095]
[1728051211102,1.05289,2374.8,2374.4,0.8307]
[1728051211499,3.2078,2375.0,2374.4,0.4095]
[1728051211500,0.4212,2374.5,2374.4,0.4095]
[1728051211901,0.4212,2374.5,2374.4,0.83072]
[1728051212109,0.4212,2374.5,2374.4,0.4095]
[1728051213207,0.42123,2374.3,2374.2,0.42125]
[1728051213403,1.05301,2374.5,2374.1,4.05]
[1728051213404,0.42122,2374.4,2374.1,0.42125]
[1728051213710,1.05309,2374.3,2374.0,0.4097]
[1728051213914,0.42125,2374.2,2374.1,0.42127]
[1728051214100,0.42127,2374.1,2374.0,0.4097]
[1728051214406,0.42131,2373.9,2373.8,0.42132]
[1728051214605,0.42132,2373.8,2373.7,0.42133]
[1728051214807,0.42131,2373.9,2373.8,0.42132]
[1728051215108,1.05314,2374.2,2373.6,0.4097]
[1728051215408,0.42131,2373.9,2373.8,0.42132]
[1728051215601,0.42121,2374.5,2374.3,0.42123]
[1728051215798,0.81529,2374.6,2374.4,0.4212]
[1728051216004,0.42121,2374.5,2374.0,1.05323]
[1728051216210,0.4212,2374.5,2374.3,0.42122]
[1728051216409,0.42121,2374.5,2374.3,0.42122]
[1728051216717,0.42128,2374.1,2374.0,0.42129]
[1728051216903,3.2078,2374.5,2373.7,1.05335]
[1728051217204,3.2078,2374.5,2373.6,4.4597]
[1728051217205,0.42121,2374.5,2374.3,0.42122]
[1728051217610,1.05293,2374.7,2374.3,0.42122]
[1728051218010,0.42122,2374.4,2373.9,5.50596]
[1728051218211,0.4212,2374.6,2374.4,0.42121]
[1728051218399,3.2078,2374.8,2373.9,4.4527]
[1728051218607,1.053,2374.6,2373.9,4.4527]
[1728051218807,3.2078,2374.8,2374.7,0.42116]
[1728051219105,0.14054329,2375.4,2373.9,2.50924]
[1728051219106,3.2078,2375.4,2375.1,0.42109]
[1728051219314,4.03555,2375.4,2375.2,0.42106]
[1728051219609,4.03554,2375.4,2375.3,0.42106]
[1728051219807,4.03554,2375.4,2375.2,0.42106]
[1728051220008,3.6145,2375.4,2375.3,0.42106]
[1728051220304,1.05249,2375.7,2375.0,0.418]
[1728051220506,3.2078,2375.8,2375.3,0.42105]
[1728051220507,0.42103,2375.5,2375.3,0.42105]
[1728051220702,0.42101,2375.6,2375.4,0.42103]
[1728051221206,0.42101,2375.6,2375.0,1.47077]
[1728051221207,0.42105,2375.4,2375.2,0.42107]
[1728051221511,0.42105,2375.4,2375.0,0.418]
[1728051221512,0.42109,2375.1,2375.0,0.418]
[1728051222202,3.2078,2375.5,2375.1,0.42109]
[1728051222401,0.42107,2375.3,2375.1,0.42109]
[1728051222608,4.26038,2375.5,2375.0,0.418]
[1728051222809,0.42108,2375.2,2375.0,0.418]
[1728051223009,0.42109,2375.1,2375.0,0.83911]
[1728051223208,0.42109,2375.1,2375.0,0.418]
[1728051223704,4.05,2375.4,2374.4,1.05302]
[1728051223908,1.05278,2375.0,2374.3,1.45679]
[1728051224114,0.42117,2374.7,2374.6,0.42117]
[1728051224309,0.42117,2374.7,2374.3,1.45679]
[1728051224513,1.05287,2374.8,2374.3,0.4037]
[1728051224703,0.4212,2374.5,2374.3,0.4037]
[1728051224902,1.05287,2374.8,2374.4,0.42121]
[1728051225107,0.42116,2374.7,2374.4,0.42121]
[1728051225401,0.42117,2374.7,2374.6,0.42118]
[1728051225603,0.42115,2374.8,2374.4,0.42121]
[1728051225807,0.42115,2374.8,2374.3,0.4037]
[1728051225808,3.2078,2374.9,2374.3,0.4037]
[1728051226005,0.42122,2374.4,2374.3,0.4037]
[1728051226708,10.212,2374.4,2373.6,0.4288]
[1728051226906,3.2078,2374.6,2373.4,3.6362]
[1728051226907,1.05328,2373.9,2373.4,3.6362]
[1728051227112,0.42133,2373.8,2373.6,0.42135]
[1728051227405,1.05329,2373.9,2373.4,3.6362]
[1728051227715,1.05319,2374.1,2373.4,3.6362]
[1728051228108,0.42132,2373.9,2373.4,4.68968]
[1728051228307,1.47291,2374.3,2373.4,4.68968]
[1728051228516,0.42118,2374.6,2374.5,0.42119]
[1728051228714,1.05289,2374.8,2374.5,0.42119]
[1728051228914,0.42119,2374.6,2374.5,0.42119]
[1728051229111,3.6988,2375.0,2374.1,0.4275]
[1728051229312,3.6013,2375.0,2374.2,1.05314]
[1728051229617,3.6013,2375.0,2374.1,0.4275]
[1728051229816,1.05288,2374.8,2374.1,0.4275]
[1728051230116,0.42127,2374.1,2374.0,0.425]
[1728051230912,0.42125,2374.2,2374.1,0.42126]
[1728051231110,3.6339,2374.4,2374.1,0.42126]
[1728051231307,3.6339,2374.4,2374.0,0.425]
[1728051231513,4.05513,2374.4,2374.0,0.425]
[1728051231817,0.42122,2374.4,2374.3,0.42123]
[1728051232016,4.26082,2374.5,2374.0,0.425]
[1728051232213,0.42125,2374.3,2374.1,0.42127]
[1728051232511,0.4261,2374.6,2374.5,0.4212]
[1728051232816,0.84729,2374.6,2374.5,0.4212]
[1728051233024,0.4261,2374.6,2374.1,0.3901]
[1728051233312,0.4261,2374.6,2374.0,4.975]
[1728051233313,0.42124,2374.3,2374.2,0.42125]
[1728051233518,0.42124,2374.3,2374.0,0.425]
[1728051233717,0.4261,2374.6,2374.0,0.425]
[1728051233919,0.4212,2374.5,2374.4,0.42121]
[1728051234119,0.4212,2374.5,2374.3,0.42122]
[1728051234415,0.4212,2374.5,2374.4,0.42122]
[1728051234811,0.84729,2374.6,2374.5,0.4212]
[1728051235006,0.42119,2374.6,2374.5,0.4212]
[1728051235226,0.4212,2374.6,2374.1,4.66666]
[1728051235514,1.05284,2374.9,2374.2,1.44322]
[1728051235814,1.05284,2374.9,2374.6,0.42118]
[1728051235815,0.42118,2374.7,2374.6,0.42118]
[1728051236314,0.42114,2374.9,2374.3,1.05307]
[1728051236517,1.4453,2375.0,2374.3,1.05307]
[1728051236518,3.2078,2374.8,2374.3,1.05307]
[1728051236724,0.42114,2374.9,2374.8,0.42115]
[1728051236912,0.3925,2375.0,2374.9,0.42113]
[1728051237125,3.2078,2375.1,2374.6,0.4109]
[1728051237423,0.42113,2374.9,2374.8,0.42113]
[1728051237715,0.42116,2374.8,2374.7,0.42116]
[1728051238020,0.42115,2374.8,2374.7,0.42115]
[1728051238215,0.42116,2374.7,2374.6,0.4109]
[1728051238621,1.05292,2374.7,2374.2,0.801]
[1728051238820,1.05292,2374.7,2374.5,0.4212]
[1728051238821,0.42118,2374.6,2374.5,0.4212]
[1728051239016,3.6083,2374.8,2374.3,1.05309]
[1728051239017,0.4005,2374.8,2374.3,1.05309]
[1728051239230,3.2078,2374.9,2374.3,8.81089]
[1728051239519,0.42116,2374.8,2374.7,0.42116]
[1728051239823,4.26064,2374.9,2374.3,7.7578]
[1728051240122,4.26064,2374.9,2374.6,0.42118]
[1728051240123,0.42118,2374.7,2374.6,0.42118]
[1728051240317,0.42121,2374.5,2374.4,0.42121]
[1728051240521,1.05293,2374.7,2374.2,0.801]
[1728051240714,0.42123,2374.3,2374.2,0.4109]
[1728051241410,1.05302,2374.5,2373.7,1.05336]
[1728051241616,2.1647822,2374.6,2374.0,0.4292]
[1728051241812,2.1647822,2374.6,2374.5,0.4212]
[1728051242015,4.54218,2374.7,2374.6,0.42118]
[1728051242016,2.5859622,2374.7,2374.6,0.42118]
[1728051242725,0.4212,2374.6,2374.5,0.42119]
[1728051242921,2.1647822,2374.7,2374.1,3.2078]
[1728051243222,0.42127,2374.2,2374.1,0.42126]
[1728051243724,0.42127,2374.1,2374.0,0.4292]
[1728051243926,1.05308,2374.4,2374.0,0.4292]
[1728051244218,2.1647822,2374.5,2374.3,0.42122]
[1728051244424,2.1647822,2374.5,2374.2,0.42124]
[1728051244425,3.2178022,2374.5,2374.2,0.42124]
[1728051244625,0.42125,2374.3,2374.2,0.42124]
[1728051244827,1.05302,2374.5,2374.0,1.48242]
[1728051245022,0.42124,2374.3,2374.2,0.42124]
[1728051245414,1.05308,2374.4,2374.0,0.4292]
[1728051245620,0.42127,2374.1,2374.0,0.85048]
[1728051245819,1.05312,2374.3,2374.0,0.4292]
[1728051246022,2.1647822,2374.6,2374.0,0.4292]
[1728051246226,3.2078,2374.9,2374.3,3.2078]
[1728051246227,5.3725822,2374.9,2374.3,3.2078]
[1728051246527,2.1647822,2375.1,2374.7,1.0529]
[1728051246719,2.1647822,2375.1,2375.0,0.42111]
[1728051246920,0.42107,2375.3,2375.2,0.42108]
[1728051247318,2.1647822,2375.4,2375.2,4.2104]
[1728051247519,1.05259,2375.5,2375.2,4.2104]
[1728051247520,2.1647822,2375.5,2375.4,0.42104]
[1728051247828,2.5858022,2375.5,2375.4,0.42104]
[1728051248127,3.62882,2375.6,2375.4,0.42104]
[1728051248330,0.42102,2375.5,2375.4,0.42104]
[1728051248632,0.42103,2375.5,2375.3,0.42105]
[1728051248825,3.2078,2375.6,2375.3,0.42105]
[1728051249019,3.2078,2375.6,2375.0,1.86487]
[1728051249020,0.42103,2375.5,2375.1,0.42109]
[1728051249223,3.2078,2375.6,2375.3,0.42105]
[1728051249430,1.05256,2375.5,2375.1,0.42109]
[1728051249616,0.42111,2375.0,2374.9,3.2078]
[1728051250229,0.4211,2375.1,2375.0,0.42111]
[1728051250425,1.0527,2375.2,2374.8,0.425]
[1728051250617,0.42111,2375.0,2374.9,0.42112]
[1728051251426,0.42109,2375.2,2375.0,0.42109]
[1728051251728,2.1647822,2375.4,2374.8,0.425]
[1728051251927,0.42109,2375.1,2375.0,0.4211]
[1728051252226,0.42113,2374.9,2374.8,0.425]
[1728051252618,1.0529,2374.8,2374.2,0.853]